bitfinex/quotes_ETHUSD_20260108
["timestamp","ask_amount","ask_price","bid_price","bid_amount"]
[1767838810537,1.4129274,3177.3,3176.1,3.14847143]
[1767838810736,1.4129274,3177.2,3176.2,0.76508515]
[1767838810936,1.4129274,3177.2,3176.3,3.14825875]
[1767838811169,1.4129274,3177.2,3176.4,1.35383593]
[1767838811847,1.4129274,3177.0,3176.2,2.11892108]
[1767838812050,1.4129274,3177.0,3176.2,1.35383593]
[1767838812250,1.4129274,3177.0,3176.2,4.50215719]
[1767838812543,1.4129274,3177.0,3176.3,1.35383593]
[1767838814647,4.56056455,3177.0,3176.3,1.35383593]
[1767838814847,1.4129274,3176.9,3176.3,1.35383593]
[1767838815344,3.14763715,3177.0,3175.9,3.14870452]
[1767838815345,1.4129274,3176.7,3175.9,3.14870452]
[1767838816265,1.4129274,3176.7,3175.9,4.50254045]
[1767838816470,1.4129274,3176.7,3176.0,3.14858559]
[1767838816967,1.4129274,3176.7,3175.7,1.35383593]
[1767838817185,1.4129274,3176.5,3175.5,4.50391045]
[1767838817380,1.4129274,3176.5,3175.7,1.35383593]
[1767838817680,0.826,3176.6,3176.0,1.35383593]
[1767838817681,2.2389274,3176.6,3176.0,1.35383593]
[1767838817856,1.4129274,3176.5,3175.9,3.1487013]
[1767838818054,0.62393757,3177.4,3176.0,1.38532207]
[1767838818382,0.62393757,3177.4,3175.9,6.29741505]
[1767838818383,1.4129274,3177.2,3176.1,0.76827371]
[1767838818638,1.4129274,3177.2,3175.5,0.001]
[1767838818639,1.4129274,3177.2,3175.7,3.14883644]
[1767838818758,1.4129274,3176.9,3175.7,3.14883644]
[1767838818957,1.4129274,3176.6,3175.6,7.65183286]
[1767838819270,1.4129274,3176.6,3175.7,1.35383593]
[1767838819476,1.4129274,3176.6,3175.8,0.76518329]
[1767838819680,1.4129274,3176.6,3175.9,1.35383593]
[1767838819969,1.4129274,3176.6,3175.9,1.38532306]
[1767838820575,1.4129274,3176.6,3175.9,1.35383593]
[1767838820952,1.4129274,3176.6,3175.9,4.50248883]
[1767838821251,1.4129274,3176.6,3176.0,0.001]
[1767838822363,1.4129274,3176.6,3176.0,1.35483593]
[1767838822567,0.826,3176.8,3176.1,1.35383593]
[1767838823255,0.826,3176.8,3176.1,4.50231303]
[1767838823887,5.38665344,3176.9,3176.1,1.35383593]
[1767838826382,5.38665344,3176.9,3176.0,3.99130591]
[1767838826383,1.4129274,3176.8,3176.0,0.84273859]
[1767838826597,1.4129274,3176.8,3176.0,3.14954938]
[1767838826764,1.4129274,3176.8,3176.0,4.50338531]
[1767838827161,1.4129274,3176.8,3176.1,1.35383593]
[1767838828491,1.4129274,3176.8,3176.1,4.50232014]
[1767838828989,1.4129274,3176.8,3176.2,1.35383593]
[1767838829162,2.2389274,3176.8,3176.2,1.35383593]
[1767838829870,5.3867536,3176.8,3176.2,1.35383593]
[1767838830590,2.2389274,3176.8,3176.2,1.35383593]
[1767838831262,2.2389274,3176.8,3176.0,3.14957913]
[1767838831263,1.4129274,3176.7,3176.0,0.001]
[1767838832469,1.30809027,3176.6,3176.0,0.001]
[1767838832872,1.30809027,3176.6,3176.3,0.001]
[1767838833168,0.002,3176.5,3176.3,0.001]
[1767838833778,1.31009027,3176.5,3176.0,0.001]
[1767838835883,1.30809027,3176.4,3175.6,1.40565413]
[1767838836495,1.30809027,3176.4,3175.6,3.14899666]
[1767838836795,1.30809027,3176.3,3175.5,3.15011037]
[1767838837289,1.30809027,3176.3,3175.5,0.001]
[1767838837879,1.30809027,3176.3,3175.5,1.40665413]
[1767838838094,1.75372299,3176.2,3175.5,1.40665413]
[1767838838669,1.30809027,3176.1,3175.5,1.40665413]
[1767838839718,4.45664101,3176.1,3175.5,1.40665413]
[1767838839877,4.45664101,3176.1,3175.5,0.001]
[1767838839878,1.30809027,3176.0,3175.5,0.001]
[1767838842077,4.45671844,3176.0,3175.5,0.001]
[1767838842309,0.44567184,3175.9,3175.5,0.001]
[1767838843302,1.30809027,3176.0,3175.5,0.001]
[1767838843513,5.28250813,3176.2,3175.5,1.40665413]
[1767838844400,1.30809027,3176.1,3175.5,1.40665413]
[1767838845028,1.30809027,3176.1,3175.5,0.001]
[1767838845407,4.45662525,3176.1,3175.8,0.001]
[1767838845610,0.52826252,3176.0,3175.8,0.001]
[1767838846089,0.826,3176.1,3175.8,0.001]
[1767838846284,3.14809195,3176.6,3176.0,1.40565413]
[1767838846505,0.002,3176.3,3176.0,1.40565413]
[1767838846703,2.3,3176.1,3176.0,1.40565413]
[1767838846905,0.002,3176.3,3176.0,1.40565413]
[1767838847116,0.826,3176.2,3175.8,0.001]
[1767838847410,2.13409027,3176.2,3175.8,0.001]
[1767838849810,1.30809027,3176.1,3175.8,0.001]
[1767838850106,0.826,3176.2,3175.8,1.40665413]
[1767838852805,0.826,3176.2,3175.9,1.40565413]
[1767838854611,0.826,3176.2,3175.9,4.55432897]
[1767838854795,0.826,3176.2,3176.0,1.86118703]
[1767838855152,0.002,3176.5,3176.2,1.40565413]
[1767838855346,0.826,3176.4,3176.2,1.40565413]
[1767838857017,0.826,3176.4,3176.2,4.55406267]
[1767838857213,0.002,3176.5,3176.4,1.40565413]
[1767838857419,0.826,3176.5,3176.4,1.40365425]
[1767838858717,0.826,3176.5,3176.4,1.40165425]
[1767838859996,0.002,3176.4,3176.3,1.40565413]
[1767838860210,0.826,3176.5,3176.3,1.40565413]
[1767838860523,0.002,3176.8,3176.5,1.40565413]
[1767838860721,1.30809027,3177.5,3176.6,1.40565413]
[1767838861024,0.826,3177.4,3176.8,1.40565413]
[1767838861222,2.13409027,3177.4,3176.8,1.40565413]
[1767838861425,1.30809027,3177.3,3176.6,4.55363327]
[1767838861626,1.30809027,3177.3,3176.7,0.45536333]
[1767838862124,1.30809027,3177.3,3176.7,1.82190012]
[1767838864113,1.1,3177.0,3176.7,0.45536333]
[1767838864814,1.35525456,3176.9,3176.7,0.45536333]
[1767838868030,1.35525456,3176.9,3176.4,3.60360999]
[1767838868031,1.35525456,3176.9,3176.4,0.45540488]
[1767838868332,1.35525456,3176.9,3176.4,3.60353876]
[1767838869328,1.35525456,3176.9,3176.4,6.75175686]
[1767838870626,1.35525456,3176.9,3176.4,3.60353876]
[1767838871015,1.35525456,3176.9,3176.4,6.75175686]
[1767838871205,1.35525456,3176.9,3176.5,0.81025101]
[1767838871607,2.45525456,3177.0,3176.5,0.81025101]
[1767838872822,2.45525456,3177.0,3176.6,3.14801989]
[1767838874242,2.45525456,3177.0,3176.5,3.95832135]
[1767838877027,2.45525456,3177.0,3176.5,7.10644034]
[1767838877336,1.35525456,3176.9,3176.2,3.14835867]
[1767838877729,1.35525456,3176.9,3176.1,3.14948166]
[1767838879434,1.35525456,3176.9,3176.1,0.001]
[1767838879435,1.35525456,3176.7,3176.1,0.001]
[1767838880939,1.35525456,3176.7,3176.1,1.35175322]
[1767838881157,1.35525456,3176.7,3176.1,2.11981959]
[1767838881642,0.002,3177.7,3176.5,1.35075322]
[1767838881935,0.002,3177.7,3176.2,9.47673318]
[1767838881936,1.35525456,3177.5,3176.7,1.35075322]
[1767838883237,0.002,3177.6,3176.7,1.35075322]
[1767838883659,0.002,3177.2,3176.9,1.35075322]
[1767838883955,0.002,3177.2,3177.0,0.44985749]
[1767838885452,0.002,3177.6,3177.0,1.80061071]
[1767838885645,1.33894328,3177.6,3177.0,3.59740867]
[1767838885845,0.002,3177.6,3177.2,1.35075322]
[1767838886052,0.002,3177.6,3177.0,4.94819499]
[1767838886253,0.002,3177.6,3177.1,1.84557272]
[1767838886453,0.002,3177.6,3177.1,4.99308834]
[1767838889134,0.002,3177.6,3177.1,3.64233512]
[1767838889993,0.002,3177.6,3177.1,0.4948195]
[1767838890276,1.33379415,3177.6,3176.9,3.1476694]
[1767838891176,0.002,3177.6,3177.0,1.35075322]
[1767838891748,1.33132408,3177.6,3177.0,1.35075322]
[1767838891976,1.33132408,3177.6,3176.2,1.33622169]
[1767838891977,1.32810889,3177.4,3176.2,1.33622169]
[1767838892163,1.32810889,3177.2,3176.3,1.5467505]
[1767838892345,1.32810889,3177.2,3176.4,1.33622169]
[1767838893578,6.29425648,3177.5,3176.4,1.33622169]
[1767838893579,1.3268946,3177.4,3176.4,1.33622169]
[1767838893873,4.47479458,3177.6,3176.6,1.33622169]
[1767838894074,5.31976929,3177.6,3176.6,1.33622169]
[1767838894464,5.31976929,3177.6,3176.7,1.33622169]
[1767838895881,4.4705386,3177.5,3176.7,1.33622169]
[1767838896271,4.4705386,3177.5,3176.9,0.001]
[1767838896463,0.002,3177.3,3176.9,0.001]
[1767838897080,0.002,3177.3,3176.9,1.33722169]
[1767838898382,0.002,3177.3,3176.6,3.14792809]
[1767838898383,1.32111984,3177.2,3176.6,1.33622169]
[1767838898581,1.32111984,3177.2,3176.2,1.33622169]
[1767838899281,1.32000042,3177.1,3176.3,1.33622169]
[1767838899586,1.32000042,3177.1,3176.4,1.33622169]
[1767838900855,4.46755936,3177.1,3176.4,1.33622169]
[1767838901281,8.5041355,3177.1,3176.4,1.33622169]
[1767838901579,1.31768725,3177.0,3176.2,1.33622169]
[1767838903181,7.61311487,3177.0,3176.2,1.33622169]
[1767838903954,1.31430652,3176.9,3176.1,0.001]
[1767838904155,1.31430652,3176.9,3175.6,1.33622169]
[1767838904460,1.31430652,3176.7,3175.5,0.001]
[1767838904653,1.31430652,3176.5,3175.5,0.001]
[1767838905157,1.31321009,3176.3,3175.5,0.001]
[1767838906760,1.31321009,3176.3,3175.2,1.33622169]
[1767838907179,1.31105477,3176.1,3175.2,1.33622169]
[1767838907391,2.07184351,3176.0,3175.2,1.33622169]
[1767838907559,1.31105477,3175.9,3175.2,1.33622169]
[1767838907759,1.31105477,3175.9,3174.7,3.14988899]
[1767838907760,1.31105477,3175.9,3174.7,1.33622169]
[1767838909078,1.31105477,3175.9,3174.8,1.33622169]
[1767838909278,1.30897483,3175.7,3174.8,1.33622169]
[1767838909480,2.13497483,3175.6,3174.8,1.33622169]
[1767838910183,3.90944628,3176.0,3174.9,1.33622169]
[1767838910388,3.97465754,3176.0,3174.9,1.36771874]
[1767838910590,3.97465754,3176.0,3174.9,1.33622169]
[1767838910774,3.97465754,3176.0,3175.1,1.33622169]
[1767838910970,5.28156661,3176.0,3175.1,1.33622169]
[1767838912201,5.28156661,3176.0,3175.2,1.33622169]
[1767838912378,0.826,3176.1,3175.4,1.33622169]
[1767838917307,2.12700157,3176.1,3175.4,1.33622169]
[1767838917489,2.12700157,3176.1,3175.4,1.78476741]
[1767838917687,1.30007391,3176.0,3175.3,1.33622169]
[1767838917983,1.30007391,3176.0,3175.0,1.33622169]
[1767838918403,1.30007391,3176.0,3175.1,1.33622169]
[1767838918883,1.30007391,3176.0,3175.0,3.14960215]
[1767838919085,1.30007391,3176.0,3175.1,0.31496022]
[1767838919474,1.29914153,3175.9,3175.1,3.46445869]
[1767838919799,0.826,3175.9,3175.2,1.33622169]
[1767838920103,1.29821729,3175.8,3175.2,1.33622169]
[1767838920497,1.29821729,3175.9,3175.2,1.33622169]
[1767838920707,1.29821729,3175.9,3175.7,0.001]
[1767838920893,1.2992869,3175.8,3175.7,0.001]
[1767838921277,0.002,3175.8,3175.7,0.001]
[1767838922699,0.002,3175.8,3175.7,1.32803121]
[1767838923003,0.002,3175.8,3175.1,1.64199143]
[1767838923180,1.29573301,3175.8,3175.2,0.47915554]
[1767838923376,1.29573301,3175.8,3174.9,1.32703121]
[1767838923377,1.29373301,3175.6,3174.9,1.32703121]
[1767838923572,1.29373301,3175.5,3174.7,1.32703121]
[1767838923773,1.29373301,3175.5,3174.7,4.4769244]
[1767838923999,1.29287534,3175.7,3174.9,1.32703121]
[1767838924299,0.826,3175.6,3174.9,1.32703121]
[1767838925102,0.826,3175.6,3175.0,1.32703121]
[1767838925305,0.826,3175.6,3174.6,0.001]
[1767838925306,1.29203117,3175.5,3174.7,1.32703121]
[1767838925472,3.14920954,3175.4,3174.7,1.32703121]
[1767838926306,4.44116124,3175.5,3174.7,1.32703121]
[1767838926505,1.29203117,3175.5,3174.8,1.32703121]
[1767838926802,1.55653163,3175.5,3174.8,1.32703121]
[1767838927301,0.26450046,3175.5,3174.8,1.32703121]
[1767838927474,0.826,3175.6,3174.8,1.32703121]
[1767838927679,7.12405694,3175.6,3174.8,1.32703121]
[1767838927989,8.41361123,3175.6,3174.8,1.32703121]
[1767838928401,1.28955429,3175.5,3174.6,1.32803121]
[1767838928793,1.28955429,3175.5,3174.6,0.001]
[1767838928977,1.28874908,3175.3,3174.6,0.001]
[1767838929503,1.28874908,3175.1,3174.6,0.001]
[1767838931589,4.43826288,3175.1,3174.6,0.001]
[1767838932991,3.14933618,3175.3,3174.7,1.32703121]
[1767838933506,4.43496819,3175.3,3174.7,1.32703121]
[1767838933716,1.28563201,3175.2,3174.9,0.001]
[1767838933893,1.28563201,3175.2,3174.6,0.001]
[1767838934305,3.99188437,3175.3,3174.6,1.32803121]
[1767838934505,1.28489235,3175.2,3174.6,1.32803121]
[1767838935292,1.28489235,3175.2,3174.6,0.001]
[1767838935517,1.28414314,3175.0,3174.0,1.32703121]
[1767838936019,4.43310582,3174.9,3174.1,1.32703121]
[1767838937117,1.28268452,3174.8,3174.1,1.32703121]
[1767838938514,7.58119822,3175.0,3174.1,1.32703121]
[1767838939290,4.43157839,3175.0,3174.1,1.32703121]
[1767838939618,0.92507272,3174.9,3174.1,1.32703121]
[1767838940019,2.20560712,3174.9,3174.1,1.32703121]
[1767838940820,3.14980471,3174.8,3174.1,1.32703121]
[1767838945187,3.14980471,3174.8,3174.4,0.001]
[1767838945387,6.29960942,3174.8,3174.4,0.001]
[1767838945592,2.12760462,3174.7,3173.9,1.32703121]
[1767838947095,0.85052165,3174.7,3173.9,1.32703121]
[1767838947296,4.00044168,3174.7,3174.0,1.32703121]
[1767838949823,0.85052165,3174.7,3174.0,1.32703121]
[1767838950026,0.827,3174.9,3174.2,1.32703121]
[1767838950216,0.827,3175.0,3174.2,1.32703121]
[1767838950529,0.52504343,3174.9,3174.2,1.32703121]
[1767838951426,4.42343431,3175.1,3174.2,1.32703121]
[1767838951609,5.25043431,3175.1,3174.2,1.32703121]
[1767838952621,8.39998356,3175.1,3174.2,1.32703121]
[1767838953426,7.57298356,3175.1,3174.2,1.32703121]
[1767838953626,8.39998356,3175.1,3174.2,1.32703121]
[1767838953829,7.57298356,3175.1,3174.2,1.32703121]
[1767838954103,0.75729836,3175.0,3174.2,1.32703121]
[1767838956438,3.1497055,3174.9,3174.2,1.32703121]
[1767838957234,3.1497055,3174.9,3174.4,0.001]
[1767838957431,0.002,3174.8,3174.4,0.001]
[1767838958128,0.002,3174.8,3174.4,1.26637172]
[1767838961840,3.14990392,3174.7,3174.4,0.001]
[1767838962011,3.14990392,3174.7,3174.2,1.26537172]
[1767838962339,4.41619152,3174.7,3173.9,1.26537172]
[1767838964943,1.26470526,3174.6,3173.9,1.26537172]
[1767838965141,3.14990392,3174.7,3173.9,1.26537172]
[1767838965344,3.8633271,3174.7,3173.9,1.26537172]
[1767838965518,1.26470526,3174.6,3173.9,1.26537172]
[1767838966316,3.15010237,3174.5,3173.9,1.26537172]
[1767838968544,1.26318558,3174.4,3173.6,1.26537172]
[1767838968782,1.26318558,3174.4,3173.6,4.41635164]
[1767838968949,1.26318558,3174.4,3173.8,1.26537172]
[1767838969120,4.41273007,3174.6,3173.8,1.26537172]
[1767838971042,0.002,3174.5,3174.0,0.001]
[1767838972144,0.002,3174.5,3174.0,1.26637172]
[1767838973052,1.26273483,3174.5,3174.0,0.001]
[1767838973345,0.51461727,3174.5,3174.0,0.001]
[1767838975223,3.66473217,3174.5,3174.0,0.001]
[1767838975444,1.25979016,3174.4,3174.0,0.001]
[1767838977125,1.25888921,3174.3,3173.5,1.26537172]
[1767838977441,1.25888921,3174.1,3173.2,1.26537172]
[1767838977640,1.25888921,3173.9,3172.7,1.26537172]
[1767838978025,1.25888921,3173.9,3172.9,1.26537172]
[1767838978235,1.25844344,3173.7,3172.9,1.26537172]
[1767838978556,1.25844344,3173.7,3172.9,4.41705523]
[1767838978848,0.59550038,3173.8,3173.1,1.26537172]
[1767838979158,0.59550038,3173.8,3173.2,1.26537172]
[1767838979330,0.827,3173.9,3173.2,1.26537172]
[1767838980053,0.827,3174.3,3173.2,1.26537172]
[1767838980227,0.002,3174.5,3174.3,1.26537172]
[1767838980425,0.002,3174.5,3173.2,1.26537172]
[1767838980639,0.002,3174.5,3173.1,14.15058633]
[1767838980640,1.27745738,3174.5,3173.4,1.26537172]
[1767838980839,1.27745738,3174.5,3173.1,9.45447176]
[1767838980840,1.27545738,3174.4,3173.6,1.26537172]
[1767838981058,1.27545738,3174.2,3173.2,1.26537172]
[1767838981253,1.27545738,3174.0,3173.3,1.26537172]
[1767838981633,3.15049764,3174.2,3173.3,1.26537172]
[1767838981838,1.27545738,3174.1,3173.3,1.26537172]
[1767838982350,1.27545738,3174.1,3173.3,2.10488503]
[1767838982557,1.27545738,3174.1,3173.4,1.29927022]
[1767838984453,4.42595953,3174.1,3173.5,0.001]
[1767838984760,1.27545738,3174.1,3173.5,1.30027022]
[1767838988160,4.42596518,3174.1,3173.5,1.30027022]
[1767838988365,5.18359214,3174.1,3173.5,0.001]
[1767838988968,1.2632103,3174.0,3173.5,0.001]
[1767838989267,1.2632103,3174.0,3171.9,3.32]
[1767838989268,1.2632103,3173.8,3172.5,1.29927022]
[1767838989463,1.2632103,3173.8,3172.7,1.29927022]
[1767838989668,1.2632103,3173.8,3173.0,1.29927022]
[1767838990543,4.41406867,3173.8,3173.0,1.29927022]
[1767838990942,1.2632103,3173.7,3172.7,1.29927022]
[1767838991171,1.2632103,3173.6,3172.7,2.12627022]
[1767838991547,1.2632103,3173.6,3172.8,1.29927022]
[1767838992967,1.2632103,3173.5,3172.8,1.29927022]
[1767838994358,1.2632103,3173.5,3172.7,1.29927022]
[1767838995164,1.2632103,3173.4,3172.7,1.29927022]
[1767838995359,1.2632103,3173.4,3172.6,0.827]
[1767838995564,1.2632103,3173.4,3172.6,2.12627022]
[1767838995874,1.2632103,3173.4,3172.7,1.29927022]
[1767838995875,0.75654346,3173.4,3172.7,1.29927022]
[1767838996049,1.2632103,3173.4,3173.0,0.001]
[1767838996751,1.2632103,3174.4,3173.0,1.30027022]
[1767838996952,1.2632103,3174.2,3173.2,1.29927022]
[1767838997180,2.0195915,3174.1,3173.2,1.29927022]
[1767838997473,4.41380891,3174.0,3173.2,1.29927022]
[1767838997681,1.2632103,3173.9,3173.2,1.29927022]
[1767838999676,3.15079715,3173.8,3173.2,1.29927022]
[1767839000375,2.0195915,3174.1,3173.2,1.29927022]
[1767839000677,3.15050717,3174.1,3173.3,1.29927022]
[1767839000871,1.2632103,3174.0,3173.3,1.29927022]
[1767839001177,1.2632103,3174.0,3173.1,1.29927022]
[1767839001671,6.30101434,3174.1,3173.1,1.29927022]
[1767839001672,4.41390817,3173.9,3173.1,1.29927022]
[1767839001878,1.2632103,3173.8,3173.1,1.29927022]
[1767839002076,1.2632103,3173.7,3173.0,0.001]
[1767839003578,1.70460112,3173.8,3173.1,1.29927022]
[1767839003880,4.41410673,3173.7,3173.1,1.29927022]
[1767839004048,1.2632103,3173.6,3173.0,0.001]
[1767839005451,1.2632103,3173.6,3173.0,1.30027022]
[1767839006077,4.41420825,3173.6,3173.0,1.30027022]
[1767839006304,1.2632103,3173.6,3173.0,1.30027022]
[1767839007354,3.95153144,3173.7,3173.0,1.30027022]
[1767839007554,3.15074238,3173.9,3173.1,1.29927022]
[1767839007776,7.56469506,3173.9,3173.3,1.30027022]
[1767839007957,1.2632103,3173.8,3173.0,0.001]
[1767839008152,4.41428384,3173.6,3173.0,0.001]
[1767839008583,1.2632103,3173.5,3173.0,0.001]
[1767839010778,3.15107354,3173.6,3173.0,1.30027022]
[1767839010981,0.75646951,3173.7,3173.0,1.30027022]
[1767839011180,1.2632103,3173.9,3173.0,1.30027022]
[1767839011379,3.1508423,3173.8,3173.0,1.30027022]
[1767839011592,4.41395432,3173.9,3173.0,1.33178613]
[1767839011754,4.41395432,3173.9,3173.0,1.30027022]
[1767839011960,0.75645593,3173.8,3173.0,1.30027022]
[1767839012457,3.15089643,3173.7,3173.0,1.30027022]
[1767839012658,3.90729157,3173.8,3173.0,1.30027022]
[1767839013854,1.26625324,3173.7,3173.0,1.30027022]
[1767839014061,1.26625324,3173.7,3173.0,0.001]
[1767839014279,1.26625324,3173.5,3173.0,0.001]
[1767839014465,1.26625324,3173.3,3173.0,0.001]
[1767839016988,4.41757069,3173.3,3172.7,2.06514338]
[1767839017389,1.26625324,3173.2,3172.5,1.23814338]
[1767839017688,1.26625324,3173.1,3172.1,2.06514338]
[1767839017875,1.26625324,3173.1,3172.2,1.23814338]
[1767839018764,4.41784479,3173.0,3172.2,1.23814338]
[1767839019091,5.21894533,3173.0,3172.2,1.23814338]
[1767839019662,1.26625324,3172.9,3172.2,1.23814338]
[1767839020058,1.26625324,3172.9,3172.2,1.24014338]
[1767839020263,0.001,3172.8,3172.2,1.24014338]
[1767839020668,0.001,3172.8,3172.2,4.39252272]
[1767839020968,0.001,3172.8,3172.3,1.23814338]
[1767839021170,0.001,3172.8,3172.2,3.99158999]
[1767839021171,0.001,3172.8,3172.2,2.07735403]
[1767839021493,0.001,3172.8,3169.6,0.16415061]
[1767839021494,0.1641,3170.6,3169.6,0.16415061]
[1767839021696,0.1641,3170.6,3169.7,1.23814338]
[1767839021697,0.0991349,3170.6,3169.7,1.23814338]
[1767839021859,0.0991349,3170.6,3169.8,1.23814338]
[1767839022259,0.0991349,3170.6,3169.9,1.23814338]
[1767839022460,1.36538814,3170.6,3169.2,1.23814338]
[1767839022968,1.26625324,3170.4,3169.2,1.23814338]
[1767839023173,1.26625324,3170.2,3168.9,2.06514338]
[1767839023974,1.26625324,3170.2,3169.0,1.23814338]
[1767839024182,1.26625324,3170.2,3169.2,1.23814338]
[1767839024491,1.26625324,3170.2,3169.2,4.39345232]
[1767839024686,1.26625324,3170.2,3169.2,1.23814338]
[1767839024887,1.26625324,3170.1,3169.2,1.23814338]
[1767839025969,1.26625324,3170.1,3169.0,3.15555188]
[1767839025970,1.26625324,3170.1,3169.0,3.15550007]
[1767839026170,1.26625324,3170.1,3169.1,3.1554669]
[1767839026391,1.26625324,3170.1,3168.9,2.06514338]
[1767839026587,1.26625324,3170.1,3168.9,5.22079835]
[1767839026789,1.73682539,3170.0,3169.0,3.15556958]
[1767839026965,1.26625324,3170.0,3169.0,4.39371296]
[1767839027170,0.28506939,3170.2,3169.1,1.23814338]
[1767839027490,0.28506939,3170.2,3169.1,1.0738774]
[1767839028374,4.70574572,3170.2,3169.1,1.0738774]
[1767839028691,1.26625324,3170.1,3169.1,1.0738774]
[1767839028898,1.73682781,3170.0,3169.1,4.22930131]
[1767839029472,1.73682781,3170.0,3169.1,1.0738774]
[1767839029667,1.26625324,3170.0,3168.9,1.34907984]
[1767839029891,1.26625324,3170.0,3169.1,3.15541781]
[1767839030970,1.26625324,3170.0,3169.0,6.31112406]
[1767839032671,1.26625324,3170.0,3169.1,0.019307]
[1767839032896,1.26625324,3170.0,3169.1,1.13940318]
[1767839033197,4.26748174,3170.2,3169.2,3.15537044]
[1767839033198,1.26625324,3170.1,3169.2,3.15537044]
[1767839033497,0.47057296,3170.0,3169.4,0.002]
[1767839033697,1.7368262,3170.0,3169.4,0.002]
[1767839034302,1.26625324,3169.9,3169.4,0.002]
[1767839034996,1.26625324,3169.9,3169.1,0.019307]
[1767839034997,1.26625324,3169.7,3169.1,0.019307]
[1767839036774,0.828,3169.8,3169.1,0.019307]
[1767839036975,1.39995071,3169.8,3169.1,0.019307]
[1767839037302,0.57195071,3169.8,3169.2,1.12009618]
[1767839037615,4.8914254,3170.0,3169.2,1.12009618]
[1767839037804,1.26625324,3169.9,3169.1,3.17477465]
[1767839038287,1.26625324,3169.9,3169.1,3.17477572]
[1767839039422,1.26625324,3169.9,3169.1,4.2948719]
[1767839039585,0.47057296,3170.0,3169.2,1.12009618]
[1767839039912,4.7057707,3170.2,3169.2,1.12009618]
[1767839040497,1.55132263,3170.2,3169.2,1.12009618]
[1767839040698,4.70570538,3170.2,3169.2,1.12009618]
[1767839040905,1.55132263,3170.2,3169.2,1.12009618]
[1767839041203,4.70572199,3170.2,3169.2,1.12009618]
[1767839041505,0.4705722,3170.1,3169.2,1.12009618]
[1767839041875,0.4705722,3170.1,3169.3,4.27536706]
[1767839042082,3.62505943,3170.1,3169.3,1.12009618]
[1767839042287,0.94176761,3170.0,3169.1,1.76712478]
[1767839042606,0.94176761,3170.0,3169.1,0.847307]
[1767839042806,0.9025809,3169.8,3169.1,0.847307]
[1767839043855,0.9025809,3169.7,3169.1,0.847307]
[1767839044405,0.9025809,3169.7,3169.1,4.00277377]
[1767839044610,0.9025809,3169.7,3169.1,7.15824377]
[1767839044907,0.9025809,3169.7,3169.1,4.00277377]
[1767839045111,0.9025809,3169.7,3168.8,3.15571674]
[1767839045410,0.9025809,3169.7,3168.8,0.71396623]
[1767839045578,0.9025809,3169.7,3168.7,3.98385289]
[1767839045980,4.05749011,3169.7,3168.8,3.15573393]
[1767839046185,0.9025809,3169.6,3168.8,3.15573393]
[1767839046480,7.21339932,3169.7,3168.7,0.828]
[1767839046686,0.9025809,3169.6,3168.7,0.828]
[1767839046905,1.62392083,3169.5,3168.7,0.828]
[1767839047911,1.62392083,3169.5,3168.7,3.98386669]
[1767839048111,4.77903164,3169.5,3168.7,0.828]
[1767839048498,1.62392083,3169.5,3168.7,3.98385151]
[1767839048891,0.9025809,3169.4,3167.5,0.50025007]
[1767839049104,0.85859682,3168.0,3165.0,0.09375597]
[1767839049290,0.85859682,3168.2,3166.7,0.91597646]
[1767839049291,0.828,3167.9,3166.7,0.91597646]
[1767839049614,3.32,3169.1,3166.7,0.91597646]
[1767839049615,0.828,3168.1,3166.7,0.91597646]
[1767839049914,0.9025809,3168.6,3166.9,0.91597646]
[1767839049915,1.7305809,3168.6,3166.9,0.91597646]
[1767839050215,0.9025809,3168.1,3166.2,0.91597646]
[1767839050393,1.0625809,3167.7,3165.6,0.91597646]
[1767839050595,1.0625809,3167.5,3165.3,3.15916239]
[1767839050793,1.7305809,3167.4,3165.4,0.91597646]
[1767839050992,1.01705809,3167.3,3165.9,3.15863541]
[1767839051188,1.01705809,3167.3,3165.9,0.91597646]
[1767839051393,0.18905809,3167.3,3165.9,0.91597646]
[1767839051620,0.828,3167.2,3165.9,0.91597646]
[1767839051816,0.9025809,3167.1,3165.8,3.15874146]
[1767839052207,0.9025809,3166.9,3165.4,4.07513486]
[1767839052595,0.9025809,3166.9,3165.4,3.1591584]
[1767839053193,0.9025809,3166.9,3164.8,3.15973768]
[1767839053194,0.9025809,3166.7,3164.6,0.91597646]
[1767839053517,0.9025809,3166.7,3163.9,6.78]
[1767839053518,0.9025809,3166.0,3163.9,6.78]
[1767839053718,0.9025809,3165.3,3163.9,6.78]
[1767839053919,0.9025809,3165.0,3163.3,0.91597646]
[1767839054123,0.09459545,3164.5,3163.3,4.07718022]
[1767839054417,0.25459545,3165.4,3163.4,0.91597646]
[1767839054418,0.09459545,3165.1,3163.4,0.91597646]
[1767839054617,0.828,3164.9,3163.6,0.91597646]
[1767839055018,0.09459545,3165.1,3163.6,0.91597646]
[1767839055019,0.92259545,3165.1,3163.6,0.91597646]
[1767839055223,0.92259545,3165.1,3162.3,6.04435112]
[1767839055224,1.0625809,3165.0,3163.1,0.91597646]
[1767839055423,0.828,3164.9,3163.3,0.91597646]
[1767839055600,0.18905809,3164.8,3163.3,1.32370694]
[1767839055800,0.18905809,3164.8,3163.3,0.91597646]
[1767839056001,1.09163899,3164.8,3163.0,3.16153075]
[1767839056303,3.15985717,3164.7,3163.1,0.94759101]
[1767839056500,0.829,3164.6,3163.1,0.91597646]
[1767839057023,0.829,3164.6,3162.4,3.16209369]
[1767839057024,0.9025809,3164.2,3162.2,3.16227009]
[1767839057238,0.09459545,3163.7,3162.2,0.63248222]
[1767839057423,0.9025809,3163.5,3161.5,0.91597646]
[1767839057727,0.829,3163.6,3161.1,3.16344595]
[1767839057728,0.16,3162.9,3161.1,3.16344595]
[1767839057932,0.09459545,3163.0,3161.2,0.91597646]
[1767839058095,0.829,3162.9,3161.2,0.94761001]
[1767839058294,0.09459545,3163.0,3161.4,0.91597646]
[1767839058501,0.09459545,3163.7,3161.6,0.91597646]
[1767839058727,3.98995587,3163.6,3161.8,0.91597646]
[1767839058931,7.15092881,3163.6,3162.3,0.002]
[1767839059297,0.09459545,3163.7,3162.3,0.91797646]
[1767839059498,0.09459545,3163.7,3162.5,0.91597646]
[1767839059713,0.09459545,3164.4,3162.7,0.91597646]
[1767839060031,4.08375556,3164.4,3162.7,0.91597646]
[1767839060328,3.16035648,3164.2,3162.8,7.23948726]
[1767839060532,0.829,3164.1,3162.9,0.91597646]
[1767839060720,3.56863219,3164.3,3162.9,0.91597646]
[1767839060901,0.829,3164.1,3162.9,0.91597646]
[1767839061698,0.829,3164.1,3162.8,3.1617554]
[1767839061902,0.829,3164.1,3162.8,3.47793094]
[1767839062411,3.98946244,3164.1,3162.8,3.47793094]